[Event "Titled Tuesday Blitz April 25 Late 2023"]
[White "Djordjevic, Vuk"]
[Black "Caruana, Fabiano"]
[WhiteFideId "902098"]
[BlackFideId "2020009"]
[WhiteElo "2452"]
[BlackElo "2837"]
[Result "1-0"]
[Round "03"]
[TimeControl "180+2"]
[Date "2023.04.25"]
[WhiteClock "0:00:06"]
[BlackClock "0:00:06"]

1. d4 {[%clk 0:03:00]}  Nf6 {[%clk 0:02:59]} 2. Bg5 {[%clk 0:03:01]}  e6 {[%clk 0:02:58]} 3. e4 {[%clk 0:03:01]}  h6 {[%clk 0:02:57]} 4. Bxf6 {[%clk 0:03:01]}  Qxf6 {[%clk 0:02:57]} 5. c3 {[%clk 0:03:01]}  d6 {[%clk 0:02:56]} 6. Bd3 {[%clk 0:03:02]}  e5 {[%clk 0:02:53]} 7. Ne2 {[%clk 0:03:01]}  Nc6 {[%clk 0:02:54]} 8. O-O {[%clk 0:03:01]}  g5 {[%clk 0:02:52]} 9. Na3 {[%clk 0:02:59]}  a6 {[%clk 0:02:50]} 10. Nc2 {[%clk 0:02:55]}  h5 {[%clk 0:02:40]} 11. Ne3 {[%clk 0:02:33]}  Ne7 {[%clk 0:02:39]} 12. Ng3 {[%clk 0:02:20]}  g4 {[%clk 0:02:32]} 13. Ngf5 {[%clk 0:02:08]}  Bxf5 {[%clk 0:02:29]} 14. exf5 {[%clk 0:01:43]}  exd4 {[%clk 0:02:27]} 15. cxd4 {[%clk 0:01:34]}  Bh6 {[%clk 0:02:26]} 16. Qb3 {[%clk 0:01:04]}  O-O-O {[%clk 0:02:04]} 17. Qa4 {[%clk 0:00:32]}  d5 {[%clk 0:02:00]} 18. Rac1 {[%clk 0:00:30]}  Kb8 {[%clk 0:01:54]} 19. Rc3 {[%clk 0:00:27]}  Rhg8 {[%clk 0:01:50]} 20. Rfc1 {[%clk 0:00:21]}  g3 {[%clk 0:01:43]} 21. hxg3 {[%clk 0:00:17]}  Bxe3 {[%clk 0:01:02]} 22. fxe3 {[%clk 0:00:17]}  Rxg3 {[%clk 0:01:01]} 23. Rxc7 {[%clk 0:00:18]}  Rdg8 {[%clk 0:01:02]} 24. Bf1 {[%clk 0:00:15]}  Nxf5 {[%clk 0:00:20]} 25. Qd7 {[%clk 0:00:15]}  Nd6 {[%clk 0:00:19]} 26. R7c6 {[%clk 0:00:16]}  R3g6 {[%clk 0:00:07]} 27. Qc7+ {[%clk 0:00:05]}  Ka8 {[%clk 0:00:05]} 28. Rb6 {[%clk 0:00:03]}  Qd8 {[%clk 0:00:05]} 29. Qxd8+ {[%clk 0:00:03]}  Rxd8 {[%clk 0:00:06]} 30. Bd3 {[%clk 0:00:02]}  Ka7 {[%clk 0:00:06]} 31. Bxg6 {[%clk 0:00:02]}  Kxb6 {[%clk 0:00:06]} 32. Bd3 {[%clk 0:00:02]}  Re8 {[%clk 0:00:06]} 33. Kf2 {[%clk 0:00:03]}  Re6 {[%clk 0:00:06]} 34. Rh1 {[%clk 0:00:03]}  Rf6+ {[%clk 0:00:06]} 35. Ke2 {[%clk 0:00:03]}  Rh6 {[%clk 0:00:06]} 36. Kd2 {[%clk 0:00:03]}  h4 {[%clk 0:00:05]} 37. Ke2 {[%clk 0:00:04]}  Kc7 {[%clk 0:00:05]} 38. Kf3 {[%clk 0:00:04]}  Rf6+ {[%clk 0:00:04]} 39. Ke2 {[%clk 0:00:04]}  Rh6 {[%clk 0:00:04]} 40. g3 {[%clk 0:00:05]}  h3 {[%clk 0:00:03]} 41. Kf3 {[%clk 0:00:05]}  Kd7 {[%clk 0:00:03]} 42. Kg4 {[%clk 0:00:05]}  h2 {[%clk 0:00:03]} 43. Kf3 {[%clk 0:00:05]}  Ke7 {[%clk 0:00:04]} 44. Kg2 {[%clk 0:00:05]}  Re6 {[%clk 0:00:04]} 45. Kf3 {[%clk 0:00:05]}  Rh6 {[%clk 0:00:04]} 46. g4 {[%clk 0:00:05]}  Rh3+ {[%clk 0:00:04]} 47. Kf4 {[%clk 0:00:04]}  f6 {[%clk 0:00:03]} 48. Bf1 {[%clk 0:00:03]}  Rh8 {[%clk 0:00:04]} 49. Bg2 {[%clk 0:00:03]}  Ke6 {[%clk 0:00:03]} 50. b3 {[%clk 0:00:02]}  Nb5 {[%clk 0:00:03]} 51. Kg3 {[%clk 0:00:02]}  Nc3 {[%clk 0:00:03]} 52. a4 {[%clk 0:00:02]}  Ne2+ {[%clk 0:00:03]} 53. Kf2 {[%clk 0:00:02]}  Nc3 {[%clk 0:00:04]} 54. Bf3 {[%clk 0:00:02]}  b5 {[%clk 0:00:02]} 55. axb5 {[%clk 0:00:02]}  axb5 {[%clk 0:00:03]} 56. Kg3 {[%clk 0:00:02]}  b4 {[%clk 0:00:04]} 57. Rxh2 {[%clk 0:00:03]}  Rxh2 {[%clk 0:00:05]} 58. Kxh2 {[%clk 0:00:03]}  Na2 {[%clk 0:00:05]} 59. Kg3 {[%clk 0:00:03]}  Nc1 {[%clk 0:00:06]} 60. Bd1 {[%clk 0:00:04]}  Na2 {[%clk 0:00:05]} 61. Kf3 {[%clk 0:00:04]}  Nc3 {[%clk 0:00:06]} 62. Bc2 {[%clk 0:00:04]}  Ke7 {[%clk 0:00:05]} 63. Bd3 {[%clk 0:00:04]}  Ke6 {[%clk 0:00:06]} 64. Kf2 {[%clk 0:00:04]}  Ke7 {[%clk 0:00:06]} 65. Bf5 {[%clk 0:00:04]}  Kd6 {[%clk 0:00:06]} 66. Ke1 {[%clk 0:00:05]}  Ke7 {[%clk 0:00:06]} 67. Kd2 {[%clk 0:00:05]}  Kf7 {[%clk 0:00:06]} 68. Kd3 {[%clk 0:00:05]}  Ke7 {[%clk 0:00:06]} 69. e4 {[%clk 0:00:06]}  dxe4+ {[%clk 0:00:06]} 70. Bxe4 {[%clk 0:00:06]}  Kd6 {[%clk 0:00:07]} 71. Bf3 {[%clk 0:00:07]}  Na2 {[%clk 0:00:07]} 72. Kc4 {[%clk 0:00:07]}  Ke6 {[%clk 0:00:07]} 73. Be4 {[%clk 0:00:06]}  Kd6 {[%clk 0:00:07]} 74. Bb1 {[%clk 0:00:06]}  Nc3 {[%clk 0:00:07]} 75. Bf5 {[%clk 0:00:06]}  Na2 {[%clk 0:00:08]} 76. Be4 {[%clk 0:00:04]}  Nc3 {[%clk 0:00:08]} 77. Bd3 {[%clk 0:00:03]}  Na2 {[%clk 0:00:08]} 78. Bf5 {[%clk 0:00:02]}  Kc6 {[%clk 0:00:07]} 79. Kd3 {[%clk 0:00:02]}  Kd6 {[%clk 0:00:07]} 80. Be4 {[%clk 0:00:02]}  Ke6 {[%clk 0:00:07]} 81. Bh7 {[%clk 0:00:03]}  Kd6 {[%clk 0:00:07]} 82. Bg8 {[%clk 0:00:03]}  Nc3 {[%clk 0:00:04]} 83. Ke3 {[%clk 0:00:04]}  Na2 {[%clk 0:00:04]} 84. Kf4 {[%clk 0:00:04]}  Nc3 {[%clk 0:00:04]} 85. Kf5 {[%clk 0:00:04]}  Ke7 {[%clk 0:00:05]} 86. Bc4 {[%clk 0:00:05]}  Nd1 {[%clk 0:00:04]} 87. Ke4 {[%clk 0:00:04]}  Kd6 {[%clk 0:00:04]} 88. Bf7 {[%clk 0:00:02]}  Nc3+ {[%clk 0:00:04]} 89. Kd3 {[%clk 0:00:03]}  Na2 {[%clk 0:00:04]} 90. Bg6 {[%clk 0:00:03]}  Ke6 {[%clk 0:00:04]} 91. Be4 {[%clk 0:00:03]}  Kd6 {[%clk 0:00:05]} 92. Bf3 {[%clk 0:00:03]}  Nc3 {[%clk 0:00:05]} 93. Kc4 {[%clk 0:00:04]}  Na2 {[%clk 0:00:05]} 94. d5 {[%clk 0:00:03]}  Ke5 {[%clk 0:00:03]} 95. Kc5 {[%clk 0:00:02]}  Nc1 {[%clk 0:00:03]} 96. Bd1 {[%clk 0:00:01]}  Nd3+ {[%clk 0:00:03]} 97. Kc6 {[%clk 0:00:02]}  Kd4 {[%clk 0:00:02]} 98. d6 {[%clk 0:00:02]}  Ne5+ {[%clk 0:00:03]} 99. Kc7 {[%clk 0:00:02]}  Kc3 {[%clk 0:00:03]} 100. d7 {[%clk 0:00:03]}  Nf7 {[%clk 0:00:03]} 101. d8=Q {[%clk 0:00:03]}  Nxd8 {[%clk 0:00:04]} 102. Kxd8 {[%clk 0:00:04]}  Kd2 {[%clk 0:00:04]} 103. Bf3 {[%clk 0:00:05]}  Ke3 {[%clk 0:00:05]} 104. Bd5 {[%clk 0:00:05]}  Kf4 {[%clk 0:00:05]} 105. Be6 {[%clk 0:00:06]}  Ke5 {[%clk 0:00:06]} 106. Ke7 {[%clk 0:00:06]}  Kf4 {[%clk 0:00:06]} 107. Kxf6 {[%clk 0:00:06]} 1-0


[Site "https://www.chess.com"]

[Event "Titled Tuesday Blitz April 25 Late 2023"]
[White "Firouzja, Alireza"]
[Black "Rustemov, Alexander"]
[WhiteFideId "12573981"]
[BlackFideId "4119002"]
[WhiteElo "2904"]
[BlackElo "2525"]
[Result "1-0"]
[Round "03"]
[TimeControl "180+2"]
[Date "2023.04.25"]
[WhiteClock "0:00:06"]
[BlackClock "0:00:02"]

1. d4 {[%clk 0:03:00]}  d5 {[%clk 0:03:00]} 2. c4 {[%clk 0:03:00]}  e6 {[%clk 0:03:01]} 3. Nc3 {[%clk 0:02:58]}  Nf6 {[%clk 0:03:01]} 4. cxd5 {[%clk 0:02:58]}  Nxd5 {[%clk 0:03:01]} 5. e4 {[%clk 0:02:58]}  Nxc3 {[%clk 0:03:01]} 6. bxc3 {[%clk 0:02:59]}  c5 {[%clk 0:03:01]} 7. Rb1 {[%clk 0:03:00]}  cxd4 {[%clk 0:03:00]} 8. cxd4 {[%clk 0:03:00]}  Be7 {[%clk 0:02:57]} 9. Nf3 {[%clk 0:02:59]}  O-O {[%clk 0:02:57]} 10. h4 {[%clk 0:02:58]}  b6 {[%clk 0:02:56]} 11. h5 {[%clk 0:02:57]}  h6 {[%clk 0:02:54]} 12. Rh3 {[%clk 0:02:57]}  Nd7 {[%clk 0:02:41]} 13. Rg3 {[%clk 0:02:55]}  Kh8 {[%clk 0:02:32]} 14. Bd3 {[%clk 0:02:51]}  Bb7 {[%clk 0:02:26]} 15. e5 {[%clk 0:02:32]}  Rc8 {[%clk 0:02:14]} 16. Be3 {[%clk 0:02:28]}  f5 {[%clk 0:02:03]} 17. Rg6 {[%clk 0:02:21]}  Bd5 {[%clk 0:02:00]} 18. Qd2 {[%clk 0:02:16]}  Rf7 {[%clk 0:01:57]} 19. Bxh6 {[%clk 0:02:10]}  gxh6 {[%clk 0:01:56]} 20. Rxe6 {[%clk 0:01:49]}  Nf8 {[%clk 0:01:40]} 21. Rxh6+ {[%clk 0:01:46]}  Nh7 {[%clk 0:01:38]} 22. e6 {[%clk 0:01:35]}  Rf6 {[%clk 0:01:32]} 23. Ne5 {[%clk 0:01:33]}  Bxe6 {[%clk 0:01:21]} 24. Bxf5 {[%clk 0:01:17]}  Bxf5 {[%clk 0:01:05]} 25. Rxf6 {[%clk 0:01:16]}  Bxf6 {[%clk 0:01:05]} 26. Nf7+ {[%clk 0:01:16]}  Kg7 {[%clk 0:01:05]} 27. Nxd8 {[%clk 0:01:17]}  Bxb1 {[%clk 0:01:06]} 28. Ne6+ {[%clk 0:01:02]}  Kf7 {[%clk 0:01:05]} 29. Nf4 {[%clk 0:00:50]}  Bg5 {[%clk 0:00:48]} 30. g3 {[%clk 0:00:30]}  Nf6 {[%clk 0:00:47]} 31. Qb2 {[%clk 0:00:26]}  Bxf4 {[%clk 0:00:38]} 32. Qb3+ {[%clk 0:00:26]}  Kg7 {[%clk 0:00:28]} 33. gxf4 {[%clk 0:00:26]}  Bf5 {[%clk 0:00:26]} 34. Qg3+ {[%clk 0:00:23]}  Kf7 {[%clk 0:00:25]} 35. h6 {[%clk 0:00:23]}  Rg8 {[%clk 0:00:23]} 36. Qa3 {[%clk 0:00:20]}  Kg6 {[%clk 0:00:20]} 37. Qxa7 {[%clk 0:00:19]}  Kxh6 {[%clk 0:00:20]} 38. Qxb6 {[%clk 0:00:19]}  Kg6 {[%clk 0:00:20]} 39. a4 {[%clk 0:00:19]}  Be4 {[%clk 0:00:15]} 40. a5 {[%clk 0:00:18]}  Re8 {[%clk 0:00:15]} 41. Kf1 {[%clk 0:00:17]}  Re7 {[%clk 0:00:14]} 42. a6 {[%clk 0:00:15]}  Kf7 {[%clk 0:00:13]} 43. a7 {[%clk 0:00:15]}  Re8 {[%clk 0:00:13]} 44. Qc7+ {[%clk 0:00:13]}  Re7 {[%clk 0:00:12]} 45. Qc4+ {[%clk 0:00:12]}  Kg7 {[%clk 0:00:09]} 46. Qc5 {[%clk 0:00:10]}  Re8 {[%clk 0:00:09]} 47. f5 {[%clk 0:00:10]}  Kf7 {[%clk 0:00:10]} 48. Qc7+ {[%clk 0:00:10]}  Kf8 {[%clk 0:00:09]} 49. Qc5+ {[%clk 0:00:10]}  Kf7 {[%clk 0:00:09]} 50. Qc7+ {[%clk 0:00:09]}  Kf8 {[%clk 0:00:09]} 51. Kg1 {[%clk 0:00:10]}  Ba8 {[%clk 0:00:07]} 52. Kh2 {[%clk 0:00:09]}  Kg8 {[%clk 0:00:06]} 53. Kg3 {[%clk 0:00:09]}  Kf8 {[%clk 0:00:06]} 54. Qc5+ {[%clk 0:00:08]}  Kf7 {[%clk 0:00:06]} 55. Qc7+ {[%clk 0:00:09]}  Re7 {[%clk 0:00:05]} 56. Qc4+ {[%clk 0:00:09]}  Kf8 {[%clk 0:00:05]} 57. Qc8+ {[%clk 0:00:08]}  Re8 {[%clk 0:00:05]} 58. Qc7 {[%clk 0:00:08]}  Re7 {[%clk 0:00:05]} 59. Qb8+ {[%clk 0:00:07]}  Re8 {[%clk 0:00:05]} 60. f3 {[%clk 0:00:08]}  Bd5 {[%clk 0:00:04]} 61. Kf2 {[%clk 0:00:08]}  Kf7 {[%clk 0:00:04]} 62. Qc7+ {[%clk 0:00:08]}  Kf8 {[%clk 0:00:04]} 63. Qc5+ {[%clk 0:00:08]}  Kf7 {[%clk 0:00:05]} 64. Qb5 {[%clk 0:00:08]}  Kf8 {[%clk 0:00:04]} 65. Kg3 {[%clk 0:00:08]}  Kf7 {[%clk 0:00:05]} 66. Kf4 {[%clk 0:00:08]}  Re7 {[%clk 0:00:05]} 67. Qc5 {[%clk 0:00:07]}  Re8 {[%clk 0:00:05]} 68. Kg5 {[%clk 0:00:07]}  Nh7+ {[%clk 0:00:05]} 69. Kf4 {[%clk 0:00:07]}  Nf6 {[%clk 0:00:06]} 70. Qc7+ {[%clk 0:00:07]}  Re7 {[%clk 0:00:07]} 71. Qb6 {[%clk 0:00:06]}  Re8 {[%clk 0:00:08]} 72. Qc5 {[%clk 0:00:05]}  Re7 {[%clk 0:00:08]} 73. Kg3 {[%clk 0:00:05]}  Re8 {[%clk 0:00:08]} 74. Kf2 {[%clk 0:00:05]}  Ba8 {[%clk 0:00:08]} 75. Qc4+ {[%clk 0:00:05]}  Bd5 {[%clk 0:00:08]} 76. Qc1 {[%clk 0:00:06]}  Ba8 {[%clk 0:00:08]} 77. Qh6 {[%clk 0:00:06]}  Bd5 {[%clk 0:00:08]} 78. Qg6+ {[%clk 0:00:06]}  Ke7 {[%clk 0:00:08]} 79. Qg7+ {[%clk 0:00:07]}  Bf7 {[%clk 0:00:09]} 80. Qg3 {[%clk 0:00:07]}  Bd5 {[%clk 0:00:08]} 81. Qc7+ {[%clk 0:00:07]}  Kf8 {[%clk 0:00:08]} 82. Kg3 {[%clk 0:00:06]}  Re7 {[%clk 0:00:08]} 83. Qd8+ {[%clk 0:00:06]}  Kf7 {[%clk 0:00:06]} 84. Qxd5+ {[%clk 0:00:07]}  Nxd5 {[%clk 0:00:05]} 85. a8=Q {[%clk 0:00:08]}  Nf6 {[%clk 0:00:05]} 86. Qc6 {[%clk 0:00:07]}  Rd7 {[%clk 0:00:04]} 87. Kf2 {[%clk 0:00:06]}  Rxd4 {[%clk 0:00:03]} 88. Qe6+ {[%clk 0:00:06]}  Kg7 {[%clk 0:00:02]} 89. Qe7+ {[%clk 0:00:06]} 1-0


[Site "https://www.chess.com"]

[Event "Titled Tuesday Blitz April 25 Late 2023"]
[White "Popilski, Gil"]
[Black "Duda, Jan-Krzysztof"]
[WhiteFideId "2809060"]
[BlackFideId "1170546"]
[WhiteElo "2537"]
[BlackElo "2790"]
[Result "0-1"]
[Round "03"]
[TimeControl "180+2"]
[Date "2023.04.25"]
[WhiteClock "0:00:53"]
[BlackClock "0:01:27"]

1. e4 {[%clk 0:03:00]}  c6 {[%clk 0:03:00]} 2. d4 {[%clk 0:02:56]}  d5 {[%clk 0:03:01]} 3. exd5 {[%clk 0:02:57]}  cxd5 {[%clk 0:03:01]} 4. c4 {[%clk 0:02:57]}  Nf6 {[%clk 0:03:01]} 5. Nc3 {[%clk 0:02:58]}  g6 {[%clk 0:02:53]} 6. cxd5 {[%clk 0:02:55]}  Nxd5 {[%clk 0:02:49]} 7. Bc4 {[%clk 0:02:53]}  Nb6 {[%clk 0:02:48]} 8. Bb3 {[%clk 0:02:53]}  Bg7 {[%clk 0:02:48]} 9. d5 {[%clk 0:02:50]}  Na6 {[%clk 0:02:40]} 10. Be3 {[%clk 0:02:49]}  O-O {[%clk 0:02:36]} 11. Nf3 {[%clk 0:02:46]}  Bg4 {[%clk 0:02:30]} 12. h3 {[%clk 0:02:33]}  Bxf3 {[%clk 0:02:30]} 13. Qxf3 {[%clk 0:02:34]}  Rc8 {[%clk 0:02:30]} 14. O-O {[%clk 0:02:32]}  Nc5 {[%clk 0:02:17]} 15. Rfd1 {[%clk 0:02:28]}  Qd7 {[%clk 0:02:14]} 16. Rd2 {[%clk 0:01:47]}  Rfd8 {[%clk 0:02:00]} 17. Bg5 {[%clk 0:01:35]}  h6 {[%clk 0:01:55]} 18. Bh4 {[%clk 0:01:28]}  g5 {[%clk 0:01:31]} 19. Bg3 {[%clk 0:01:27]}  e5 {[%clk 0:01:29]} 20. Bc2 {[%clk 0:00:54]}  Nc4 {[%clk 0:01:28]} 21. Bf5 {[%clk 0:00:53]}  Nxd2 {[%clk 0:01:27]} 0-1


[Site "https://www.chess.com"]

[Event "Titled Tuesday Blitz April 25 Late 2023"]
[White "Bluebaum, Matthias"]
[Black "Yanchenko, Roman"]
[WhiteFideId "24651516"]
[BlackFideId "4137329"]
[WhiteElo "2638"]
[BlackElo "2491"]
[Result "1-0"]
[Round "03"]
[TimeControl "180+2"]
[Date "2023.04.25"]
[WhiteClock "0:02:05"]
[BlackClock "0:00:09"]

1. d4 {[%clk 0:03:00]}  d5 {[%clk 0:02:59]} 2. c4 {[%clk 0:03:00]}  c6 {[%clk 0:02:59]} 3. Nf3 {[%clk 0:03:00]}  Nf6 {[%clk 0:02:59]} 4. Nc3 {[%clk 0:03:01]}  a6 {[%clk 0:02:59]} 5. Qc2 {[%clk 0:03:01]}  g6 {[%clk 0:02:58]} 6. Bg5 {[%clk 0:02:59]}  Bg7 {[%clk 0:02:58]} 7. cxd5 {[%clk 0:02:59]}  Nxd5 {[%clk 0:02:50]} 8. e4 {[%clk 0:03:00]}  Nxc3 {[%clk 0:02:49]} 9. bxc3 {[%clk 0:03:00]}  h6 {[%clk 0:02:45]} 10. Be3 {[%clk 0:02:59]}  Nd7 {[%clk 0:02:43]} 11. Be2 {[%clk 0:02:58]}  Nf6 {[%clk 0:02:41]} 12. h3 {[%clk 0:02:59]}  O-O {[%clk 0:02:40]} 13. O-O {[%clk 0:02:58]}  Qa5 {[%clk 0:02:35]} 14. c4 {[%clk 0:02:55]}  Rd8 {[%clk 0:02:02]} 15. e5 {[%clk 0:02:54]}  Bf5 {[%clk 0:01:45]} 16. Qc1 {[%clk 0:02:54]}  Ne4 {[%clk 0:01:43]} 17. Bxh6 {[%clk 0:02:54]}  Nc3 {[%clk 0:01:43]} 18. Re1 {[%clk 0:02:55]}  Nxe2+ {[%clk 0:01:01]} 19. Rxe2 {[%clk 0:02:56]}  Bh8 {[%clk 0:01:00]} 20. Re1 {[%clk 0:02:45]}  b5 {[%clk 0:00:57]} 21. c5 {[%clk 0:02:21]}  Qa4 {[%clk 0:00:48]} 22. Qg5 {[%clk 0:02:19]}  f6 {[%clk 0:00:38]} 23. exf6 {[%clk 0:02:16]}  Bxf6 {[%clk 0:00:36]} 24. Qg3 {[%clk 0:02:16]}  Rxd4 {[%clk 0:00:33]} 25. Nxd4 {[%clk 0:02:15]}  Qxd4 {[%clk 0:00:33]} 26. Rad1 {[%clk 0:02:13]}  Qxc5 {[%clk 0:00:33]} 27. Bg5 {[%clk 0:02:13]}  Bxg5 {[%clk 0:00:09]} 28. Qxg5 {[%clk 0:02:14]}  Kf7 {[%clk 0:00:09]} 29. g4 {[%clk 0:02:09]}  Rg8 {[%clk 0:00:09]} 30. Rd7 {[%clk 0:02:06]}  Qb4 {[%clk 0:00:09]} 31. Rexe7+ {[%clk 0:02:05]} 1-0


[Site "https://www.chess.com"]

[Event "Titled Tuesday Blitz April 25 Late 2023"]
[White "Weetik, Vjacheslav"]
[Black "Lazavik, Denis"]
[WhiteFideId "4153472"]
[BlackFideId "13515110"]
[WhiteElo "2469"]
[BlackElo "2560"]
[Result "0-1"]
[Round "03"]
[TimeControl "180+2"]
[Date "2023.04.25"]
[WhiteClock "0:00:01"]
[BlackClock "0:00:12"]

1. d4 {[%clk 0:02:59]}  Nf6 {[%clk 0:02:59]} 2. Bf4 {[%clk 0:02:59]}  d5 {[%clk 0:02:59]} 3. e3 {[%clk 0:02:59]}  c5 {[%clk 0:02:59]} 4. c3 {[%clk 0:03:00]}  Nc6 {[%clk 0:03:00]} 5. Nd2 {[%clk 0:03:00]}  Bg4 {[%clk 0:02:59]} 6. Qb3 {[%clk 0:02:59]}  Qc8 {[%clk 0:02:59]} 7. Bb5 {[%clk 0:02:37]}  e6 {[%clk 0:02:56]} 8. Ngf3 {[%clk 0:02:36]}  Nd7 {[%clk 0:02:44]} 9. c4 {[%clk 0:02:09]}  a6 {[%clk 0:02:33]} 10. Bxc6 {[%clk 0:01:47]}  bxc6 {[%clk 0:02:13]} 11. O-O {[%clk 0:01:37]}  Be7 {[%clk 0:02:02]} 12. e4 {[%clk 0:01:24]}  cxd4 {[%clk 0:01:47]} 13. cxd5 {[%clk 0:01:18]}  Nc5 {[%clk 0:01:45]} 14. Qc4 {[%clk 0:01:12]}  cxd5 {[%clk 0:01:36]} 15. exd5 {[%clk 0:01:11]}  exd5 {[%clk 0:01:33]} 16. Qxd4 {[%clk 0:01:01]}  O-O {[%clk 0:01:12]} 17. Rac1 {[%clk 0:00:55]}  Qf5 {[%clk 0:01:10]} 18. Bg3 {[%clk 0:00:41]}  Ne6 {[%clk 0:01:09]} 19. Qa4 {[%clk 0:00:35]}  Bf6 {[%clk 0:01:09]} 20. Rce1 {[%clk 0:00:20]}  Bxb2 {[%clk 0:00:53]} 21. Be5 {[%clk 0:00:20]}  Bxe5 {[%clk 0:00:47]} 22. Rxe5 {[%clk 0:00:17]}  Qf4 {[%clk 0:00:47]} 23. Qa5 {[%clk 0:00:15]}  Nd4 {[%clk 0:00:39]} 24. Qxd5 {[%clk 0:00:12]}  Nxf3+ {[%clk 0:00:27]} 25. Nxf3 {[%clk 0:00:11]}  Bxf3 {[%clk 0:00:26]} 26. gxf3 {[%clk 0:00:11]}  Rad8 {[%clk 0:00:26]} 27. Qe4 {[%clk 0:00:12]}  Qf6 {[%clk 0:00:26]} 28. Re1 {[%clk 0:00:11]}  g6 {[%clk 0:00:25]} 29. Kg2 {[%clk 0:00:12]}  Kg7 {[%clk 0:00:21]} 30. h4 {[%clk 0:00:12]}  h5 {[%clk 0:00:20]} 31. Re2 {[%clk 0:00:12]}  Rd6 {[%clk 0:00:19]} 32. Re7 {[%clk 0:00:11]}  Rd4 {[%clk 0:00:17]} 33. Qe5 {[%clk 0:00:06]}  Rxh4 {[%clk 0:00:14]} 34. Qxf6+ {[%clk 0:00:03]}  Kxf6 {[%clk 0:00:15]} 35. Ra7 {[%clk 0:00:03]}  Ra4 {[%clk 0:00:15]} 36. Kg3 {[%clk 0:00:03]}  Kg7 {[%clk 0:00:15]} 37. f4 {[%clk 0:00:03]}  Ra3+ {[%clk 0:00:14]} 38. Kg2 {[%clk 0:00:03]}  Kf6 {[%clk 0:00:13]} 39. Rc2 {[%clk 0:00:01]}  Kf5 {[%clk 0:00:13]} 40. Rcc7 {[%clk 0:00:01]}  f6 {[%clk 0:00:12]} 0-1


[Site "https://www.chess.com"]

[Event "Titled Tuesday Blitz April 25 Late 2023"]
[White "Paravyan, David"]
[Black "Papasimakopoulos, Alexandros"]
[WhiteFideId "4194985"]
[BlackFideId "4244125"]
[WhiteElo "2563"]
[BlackElo "2359"]
[Result "1-0"]
[Round "03"]
[TimeControl "180+2"]
[Date "2023.04.25"]
[WhiteClock "0:00:26"]
[BlackClock "0:00:45"]

1. e4 {[%clk 0:02:59]}  g6 {[%clk 0:02:39]} 2. d4 {[%clk 0:02:58]}  c6 {[%clk 0:02:38]} 3. Nf3 {[%clk 0:02:57]}  d5 {[%clk 0:02:39]} 4. e5 {[%clk 0:02:52]}  Bg4 {[%clk 0:02:39]} 5. Nbd2 {[%clk 0:02:51]}  Bg7 {[%clk 0:02:34]} 6. h3 {[%clk 0:02:51]}  Bf5 {[%clk 0:02:29]} 7. g4 {[%clk 0:02:49]}  Bc8 {[%clk 0:02:28]} 8. Nb3 {[%clk 0:02:15]}  h5 {[%clk 0:02:27]} 9. Rg1 {[%clk 0:02:14]}  hxg4 {[%clk 0:02:26]} 10. hxg4 {[%clk 0:02:15]}  Nh6 {[%clk 0:02:25]} 11. Nh2 {[%clk 0:02:04]}  Nd7 {[%clk 0:02:13]} 12. f4 {[%clk 0:01:48]}  a5 {[%clk 0:02:05]} 13. a4 {[%clk 0:01:46]}  Nf8 {[%clk 0:01:56]} 14. Be3 {[%clk 0:01:44]}  Nf5 {[%clk 0:01:54]} 15. gxf5 {[%clk 0:01:43]}  Rxh2 {[%clk 0:01:53]} 16. Bd3 {[%clk 0:01:36]}  Bxf5 {[%clk 0:01:41]} 17. Bxf5 {[%clk 0:01:17]}  e6 {[%clk 0:01:41]} 18. Bg4 {[%clk 0:01:00]}  Qh4+ {[%clk 0:01:37]} 19. Kf1 {[%clk 0:01:00]}  g5 {[%clk 0:01:31]} 20. Nd2 {[%clk 0:00:40]}  Rh1 {[%clk 0:01:20]} 21. Bf2 {[%clk 0:00:32]}  Qh2 {[%clk 0:01:10]} 22. Rxh1 {[%clk 0:00:30]}  Qxh1+ {[%clk 0:01:10]} 23. Ke2 {[%clk 0:00:31]}  Qh2 {[%clk 0:00:55]} 24. Qg1 {[%clk 0:00:30]}  Qxf4 {[%clk 0:00:50]} 25. Be3 {[%clk 0:00:31]}  Ng6 {[%clk 0:00:43]} 26. Bxf4 {[%clk 0:00:31]}  Nxf4+ {[%clk 0:00:44]} 27. Kf3 {[%clk 0:00:31]}  f5 {[%clk 0:00:44]} 28. exf6 {[%clk 0:00:31]}  Bxf6 {[%clk 0:00:44]} 29. Re1 {[%clk 0:00:31]}  Kd7 {[%clk 0:00:45]} 30. Nb3 {[%clk 0:00:28]}  Rf8 {[%clk 0:00:45]} 31. Ke3 {[%clk 0:00:26]}  Kd6 {[%clk 0:00:44]} 32. Kd2 {[%clk 0:00:26]}  e5 {[%clk 0:00:43]} 33. dxe5+ {[%clk 0:00:26]}  Bxe5 {[%clk 0:00:44]} 34. Qc5+ {[%clk 0:00:26]}  Kc7 {[%clk 0:00:45]} 1-0


[Site "https://www.chess.com"]

[Event "Titled Tuesday Blitz April 25 Late 2023"]
[White "Schmakel, Sam"]
[Black "Makarian, Rudik"]
[WhiteFideId "2039311"]
[BlackFideId "44105681"]
[WhiteElo "2356"]
[BlackElo "2430"]
[Result "0-1"]
[Round "03"]
[TimeControl "180+2"]
[Date "2023.04.25"]
[WhiteClock "0:00:02"]
[BlackClock "0:00:05"]

1. d4 {[%clk 0:03:00]}  Nf6 {[%clk 0:03:00]} 2. c4 {[%clk 0:03:00]}  e6 {[%clk 0:03:01]} 3. Nf3 {[%clk 0:02:59]}  d5 {[%clk 0:03:01]} 4. Nc3 {[%clk 0:02:59]}  dxc4 {[%clk 0:02:59]} 5. e4 {[%clk 0:02:56]}  b5 {[%clk 0:02:59]} 6. e5 {[%clk 0:02:55]}  Nd5 {[%clk 0:03:00]} 7. Nxb5 {[%clk 0:02:55]}  Nb6 {[%clk 0:03:00]} 8. Be2 {[%clk 0:02:50]}  Nc6 {[%clk 0:03:01]} 9. O-O {[%clk 0:02:48]}  Be7 {[%clk 0:03:01]} 10. Qd2 {[%clk 0:02:47]}  O-O {[%clk 0:03:01]} 11. Qf4 {[%clk 0:02:47]}  Nb4 {[%clk 0:03:02]} 12. Qg3 {[%clk 0:02:39]}  Kh8 {[%clk 0:03:02]} 13. Rd1 {[%clk 0:02:34]}  Bb7 {[%clk 0:03:01]} 14. Bd2 {[%clk 0:02:03]}  Qd7 {[%clk 0:02:58]} 15. Na3 {[%clk 0:01:56]}  Nd3 {[%clk 0:02:49]} 16. Nxc4 {[%clk 0:01:40]}  Nxc4 {[%clk 0:02:41]} 17. Bxd3 {[%clk 0:01:40]}  Nxb2 {[%clk 0:02:42]} 18. Rdb1 {[%clk 0:01:04]}  Bxf3 {[%clk 0:02:18]} 19. Qxf3 {[%clk 0:01:04]}  Nxd3 {[%clk 0:02:18]} 20. Qxd3 {[%clk 0:01:05]}  Rab8 {[%clk 0:02:18]} 21. Be3 {[%clk 0:01:02]}  h6 {[%clk 0:02:08]} 22. Qa6 {[%clk 0:00:58]}  c6 {[%clk 0:01:41]} 23. Rb3 {[%clk 0:00:58]}  Rb5 {[%clk 0:01:31]} 24. Rxb5 {[%clk 0:00:47]}  cxb5 {[%clk 0:01:32]} 25. Rc1 {[%clk 0:00:47]}  Bg5 {[%clk 0:01:25]} 26. Qc6 {[%clk 0:00:42]}  Qxc6 {[%clk 0:01:20]} 27. Rxc6 {[%clk 0:00:43]}  Rb8 {[%clk 0:00:40]} 28. Rc7 {[%clk 0:00:32]}  a5 {[%clk 0:00:40]} 29. Rxf7 {[%clk 0:00:21]}  a4 {[%clk 0:00:40]} 30. f4 {[%clk 0:00:14]}  Bd8 {[%clk 0:00:32]} 31. Rf8+ {[%clk 0:00:13]}  Kh7 {[%clk 0:00:31]} 32. d5 {[%clk 0:00:13]}  b4 {[%clk 0:00:17]} 33. dxe6 {[%clk 0:00:09]}  b3 {[%clk 0:00:17]} 34. axb3 {[%clk 0:00:09]}  axb3 {[%clk 0:00:18]} 35. e7 {[%clk 0:00:02]}  b2 {[%clk 0:00:19]} 36. Rxd8 {[%clk 0:00:02]}  b1=Q+ {[%clk 0:00:18]} 37. Kf2 {[%clk 0:00:03]}  Rb2+ {[%clk 0:00:17]} 38. Kf3 {[%clk 0:00:03]}  Qf1+ {[%clk 0:00:17]} 39. Ke4 {[%clk 0:00:03]}  Qxg2+ {[%clk 0:00:17]} 40. Kd3 {[%clk 0:00:03]}  Qc2+ {[%clk 0:00:14]} 41. Kd4 {[%clk 0:00:03]}  Rb4+ {[%clk 0:00:13]} 42. Kd5 {[%clk 0:00:04]}  Qc4+ {[%clk 0:00:05]} 43. Kd6 {[%clk 0:00:04]}  Qa6+ {[%clk 0:00:05]} 44. Kd5 {[%clk 0:00:03]}  Rb5+ {[%clk 0:00:04]} 45. Ke4 {[%clk 0:00:03]}  Qa4+ {[%clk 0:00:04]} 46. Kf5 {[%clk 0:00:03]}  Qc2+ {[%clk 0:00:04]} 47. Ke6 {[%clk 0:00:03]}  Qg6+ {[%clk 0:00:04]} 48. Kd7 {[%clk 0:00:02]}  Rb7+ {[%clk 0:00:05]} 49. Kc8 {[%clk 0:00:02]}  Qc6# {[%clk 0:00:05]} 0-1


[Site "https://www.chess.com"]